[Event "Titled Tuesday Blitz May 30 Early 2023"]
[White "Mazurkiewicz, Michal"]
[Black "Ehlvest, Jaan"]
[WhiteFideId "1124943"]
[BlackFideId "4500016"]
[WhiteElo "2054"]
[BlackElo "2442"]
[Result "0-1"]
[Round "04"]
[TimeControl "180+2"]
[Date "2023.05.30"]
[WhiteClock "0:01:18"]
[BlackClock "0:01:02"]

1. e4 {[%clk 0:03:00]}  g6 {[%clk 0:02:51]} 2. d4 {[%clk 0:03:00]}  Bg7 {[%clk 0:02:51]} 3. Nc3 {[%clk 0:03:00]}  c6 {[%clk 0:02:51]} 4. f4 {[%clk 0:03:00]}  Qb6 {[%clk 0:02:49]} 5. Nf3 {[%clk 0:03:00]}  d5 {[%clk 0:02:49]} 6. exd5 {[%clk 0:02:52]}  Nh6 {[%clk 0:02:45]} 7. dxc6 {[%clk 0:02:39]}  Nxc6 {[%clk 0:02:44]} 8. Bb5 {[%clk 0:02:40]}  O-O {[%clk 0:02:41]} 9. Bxc6 {[%clk 0:02:40]}  bxc6 {[%clk 0:02:40]} 10. Na4 {[%clk 0:02:19]}  Qb5 {[%clk 0:02:21]} 11. c3 {[%clk 0:02:19]}  Bg4 {[%clk 0:02:21]} 12. Nc5 {[%clk 0:02:13]}  Nf5 {[%clk 0:02:00]} 13. Qd3 {[%clk 0:02:11]}  Qb6 {[%clk 0:01:35]} 14. Ne5 {[%clk 0:02:10]}  Bxe5 {[%clk 0:01:23]} 15. fxe5 {[%clk 0:02:09]}  Rad8 {[%clk 0:01:23]} 16. Qe4 {[%clk 0:02:10]}  h5 {[%clk 0:01:13]} 17. Kf2 {[%clk 0:01:58]}  Ng7 {[%clk 0:01:08]} 18. Bh6 {[%clk 0:01:52]}  Qxb2+ {[%clk 0:01:06]} 19. Kg3 {[%clk 0:01:49]}  Nf5+ {[%clk 0:01:05]} 20. Qxf5 {[%clk 0:01:25]}  Bxf5 {[%clk 0:01:03]} 21. Bxf8 {[%clk 0:01:18]}  Qxc3+ {[%clk 0:01:02]} 0-1


[Site "https://www.chess.com"]

[Event "Titled Tuesday Blitz May 30 Early 2023"]
[White "Lopez Del Alamo, Antonio"]
[Black "Melikyan, Gnel"]
[WhiteFideId "2227339"]
[BlackFideId "54109990"]
[WhiteElo "2175"]
[BlackElo "2138"]
[Result "0-1"]
[Round "04"]
[TimeControl "180+2"]
[Date "2023.05.30"]
[WhiteClock "0:00:00"]
[BlackClock "0:00:12"]

1. e4 {[%clk 0:03:00]}  e5 {[%clk 0:02:59]} 2. Bc4 {[%clk 0:02:56]}  Bc5 {[%clk 0:02:59]} 3. Nc3 {[%clk 0:02:47]}  Nf6 {[%clk 0:02:58]} 4. d3 {[%clk 0:02:47]}  d6 {[%clk 0:02:57]} 5. Na4 {[%clk 0:02:45]}  Bb4+ {[%clk 0:02:31]} 6. c3 {[%clk 0:02:38]}  Ba5 {[%clk 0:02:32]} 7. b4 {[%clk 0:02:37]}  Bb6 {[%clk 0:02:32]} 8. Nxb6 {[%clk 0:02:30]}  axb6 {[%clk 0:02:32]} 9. Bb3 {[%clk 0:02:23]}  Be6 {[%clk 0:02:29]} 10. Bc2 {[%clk 0:02:10]}  O-O {[%clk 0:02:17]} 11. a3 {[%clk 0:02:05]}  Nbd7 {[%clk 0:02:07]} 12. Nf3 {[%clk 0:01:58]}  h6 {[%clk 0:02:06]} 13. O-O {[%clk 0:01:57]}  Re8 {[%clk 0:02:05]} 14. Re1 {[%clk 0:01:52]}  c6 {[%clk 0:02:00]} 15. h3 {[%clk 0:01:51]}  b5 {[%clk 0:02:00]} 16. a4 {[%clk 0:01:48]}  bxa4 {[%clk 0:01:58]} 17. Rxa4 {[%clk 0:01:46]}  b5 {[%clk 0:01:57]} 18. Rxa8 {[%clk 0:01:37]}  Qxa8 {[%clk 0:01:58]} 19. Bb2 {[%clk 0:01:36]}  Qa2 {[%clk 0:01:56]} 20. Qb1 {[%clk 0:01:30]}  Ra8 {[%clk 0:01:51]} 21. Nd2 {[%clk 0:01:26]}  Nb6 {[%clk 0:01:48]} 22. Qc1 {[%clk 0:01:04]}  Na4 {[%clk 0:01:36]} 23. Ba1 {[%clk 0:01:03]}  c5 {[%clk 0:01:27]} 24. c4 {[%clk 0:00:58]}  bxc4 {[%clk 0:01:22]} 25. dxc4 {[%clk 0:00:57]}  cxb4 {[%clk 0:01:20]} 26. f4 {[%clk 0:00:36]}  Nc3 {[%clk 0:01:11]} 27. Bb3 {[%clk 0:00:32]}  Ne2+ {[%clk 0:00:58]} 28. Rxe2 {[%clk 0:00:30]}  Qxa1 {[%clk 0:00:59]} 29. Qxa1 {[%clk 0:00:25]}  Rxa1+ {[%clk 0:00:59]} 30. Kh2 {[%clk 0:00:26]}  exf4 {[%clk 0:00:57]} 31. Nf3 {[%clk 0:00:23]}  Nd7 {[%clk 0:00:54]} 32. Nd4 {[%clk 0:00:19]}  Nc5 {[%clk 0:00:54]} 33. e5 {[%clk 0:00:19]}  dxe5 {[%clk 0:00:39]} 34. Rxe5 {[%clk 0:00:19]}  Nxb3 {[%clk 0:00:40]} 35. Nxb3 {[%clk 0:00:19]}  Ra3 {[%clk 0:00:38]} 36. Nd2 {[%clk 0:00:12]}  Ra2 {[%clk 0:00:37]} 37. Nf3 {[%clk 0:00:07]}  Bxc4 {[%clk 0:00:35]} 38. Re4 {[%clk 0:00:07]}  Bd5 {[%clk 0:00:34]} 39. Rxf4 {[%clk 0:00:07]}  b3 {[%clk 0:00:33]} 40. Kg3 {[%clk 0:00:05]}  Rc2 {[%clk 0:00:12]} 41. Rb4 {[%clk 0:00:05]}  b2 {[%clk 0:00:13]} 42. Ng5 {[%clk 0:00:03]}  Rxg2+ {[%clk 0:00:12]} 43. Kf4 {[%clk 0:00:03]}  hxg5+ {[%clk 0:00:12]} 44. Ke5 {[%clk 0:00:00]}  Be6 {[%clk 0:00:12]} 0-1


[Site "https://www.chess.com"]

[Event "Titled Tuesday Blitz May 30 Early 2023"]
[White "Souleidis, Georgios"]
[Black "Kazmin_Semyon"]
[WhiteFideId "4206827"]
[WhiteElo "2401"]
[BlackElo "2397"]
[Result "1-0"]
[Round "04"]
[TimeControl "180+2"]
[Date "2023.05.30"]
[WhiteClock "0:00:10"]
[BlackClock "0:00:01"]

1. e4 {[%clk 0:03:00]}  e6 {[%clk 0:02:50]} 2. d4 {[%clk 0:02:59]}  d5 {[%clk 0:02:51]} 3. Nc3 {[%clk 0:03:00]}  Bb4 {[%clk 0:02:50]} 4. Ne2 {[%clk 0:02:59]}  dxe4 {[%clk 0:02:46]} 5. a3 {[%clk 0:02:59]}  Bxc3+ {[%clk 0:02:45]} 6. Nxc3 {[%clk 0:03:00]}  c5 {[%clk 0:02:46]} 7. Bb5+ {[%clk 0:02:53]}  Bd7 {[%clk 0:02:42]} 8. dxc5 {[%clk 0:02:41]}  Nf6 {[%clk 0:02:41]} 9. O-O {[%clk 0:02:34]}  O-O {[%clk 0:02:39]} 10. Be3 {[%clk 0:02:28]}  Nc6 {[%clk 0:02:21]} 11. Qe2 {[%clk 0:02:27]}  Qc7 {[%clk 0:02:18]} 12. Rfd1 {[%clk 0:02:25]}  Rfd8 {[%clk 0:02:17]} 13. Bg5 {[%clk 0:02:14]}  Qe5 {[%clk 0:02:01]} 14. Bxf6 {[%clk 0:02:14]}  gxf6 {[%clk 0:02:02]} 15. Qxe4 {[%clk 0:01:58]}  Qxc5 {[%clk 0:02:00]} 16. Qg4+ {[%clk 0:01:13]}  Kh8 {[%clk 0:01:54]} 17. Qh4 {[%clk 0:01:13]}  Qg5 {[%clk 0:01:46]} 18. Qxg5 {[%clk 0:01:13]}  fxg5 {[%clk 0:01:47]} 19. Ne4 {[%clk 0:01:14]}  h6 {[%clk 0:01:45]} 20. Nc5 {[%clk 0:01:11]}  Be8 {[%clk 0:01:42]} 21. Nxb7 {[%clk 0:01:06]}  Rxd1+ {[%clk 0:00:55]} 22. Rxd1 {[%clk 0:01:07]}  Rb8 {[%clk 0:00:48]} 23. Bxc6 {[%clk 0:01:04]}  Bxc6 {[%clk 0:00:48]} 24. Rd8+ {[%clk 0:00:42]}  Rxd8 {[%clk 0:00:47]} 25. Nxd8 {[%clk 0:00:42]}  Be4 {[%clk 0:00:47]} 26. Nxf7+ {[%clk 0:00:35]}  Kg7 {[%clk 0:00:47]} 27. Nd6 {[%clk 0:00:29]}  Bxc2 {[%clk 0:00:47]} 28. f3 {[%clk 0:00:24]}  Kf6 {[%clk 0:00:45]} 29. Kf2 {[%clk 0:00:20]}  Ke5 {[%clk 0:00:40]} 30. Nb5 {[%clk 0:00:19]}  a6 {[%clk 0:00:32]} 31. Nc7 {[%clk 0:00:20]}  a5 {[%clk 0:00:31]} 32. Ke3 {[%clk 0:00:19]}  Ba4 {[%clk 0:00:23]} 33. Na6 {[%clk 0:00:17]}  Kd5 {[%clk 0:00:19]} 34. Nc7+ {[%clk 0:00:13]}  Kd6 {[%clk 0:00:19]} 35. Na6 {[%clk 0:00:13]}  Bb5 {[%clk 0:00:13]} 36. Nb8 {[%clk 0:00:08]}  Kc7 {[%clk 0:00:13]} 37. Kd4 {[%clk 0:00:08]}  Kxb8 {[%clk 0:00:12]} 38. Ke5 {[%clk 0:00:08]}  Bc4 {[%clk 0:00:11]} 39. Kf6 {[%clk 0:00:09]}  Kc7 {[%clk 0:00:09]} 40. Kg6 {[%clk 0:00:09]}  Kd6 {[%clk 0:00:04]} 41. Kxh6 {[%clk 0:00:10]}  Ke5 {[%clk 0:00:05]} 42. Kxg5 {[%clk 0:00:10]}  Bf1 {[%clk 0:00:03]} 43. g4 {[%clk 0:00:09]}  Kd4 {[%clk 0:00:04]} 44. f4 {[%clk 0:00:09]}  Ke4 {[%clk 0:00:03]} 45. h4 {[%clk 0:00:10]}  Kd5 {[%clk 0:00:02]} 46. h5 {[%clk 0:00:10]}  Kd6 {[%clk 0:00:03]} 47. Kf6 {[%clk 0:00:10]}  e5 {[%clk 0:00:01]} 48. fxe5+ {[%clk 0:00:10]}  Kd7 {[%clk 0:00:02]} 49. h6 {[%clk 0:00:10]}  Ke8 {[%clk 0:00:01]} 50. h7 {[%clk 0:00:10]} 1-0


[Site "https://www.chess.com"]

[Event "Titled Tuesday Blitz May 30 Early 2023"]
[White "Bashkansky, Ethan"]
[Black "RobertDowneyJr0111"]
[WhiteFideId "2071533"]
[WhiteElo "2327"]
[BlackElo "2625"]
[Result "0-1"]
[Round "04"]
[TimeControl "180+2"]
[Date "2023.05.30"]
[WhiteClock "0:00:16"]
[BlackClock "0:01:12"]

1. d4 {[%clk 0:03:00]}  d5 {[%clk 0:02:59]} 2. c4 {[%clk 0:03:01]}  c6 {[%clk 0:03:00]} 3. Nc3 {[%clk 0:03:01]}  Nf6 {[%clk 0:03:00]} 4. e3 {[%clk 0:03:02]}  e6 {[%clk 0:03:01]} 5. Nf3 {[%clk 0:03:02]}  Nbd7 {[%clk 0:03:01]} 6. Bd3 {[%clk 0:03:03]}  Bd6 {[%clk 0:03:00]} 7. O-O {[%clk 0:03:03]}  dxc4 {[%clk 0:03:00]} 8. Bxc4 {[%clk 0:03:03]}  Qe7 {[%clk 0:03:01]} 9. e4 {[%clk 0:02:58]}  e5 {[%clk 0:03:01]} 10. d5 {[%clk 0:02:55]}  Nb6 {[%clk 0:02:59]} 11. b3 {[%clk 0:02:49]}  O-O {[%clk 0:02:58]} 12. Bb2 {[%clk 0:02:46]}  Nxc4 {[%clk 0:02:54]} 13. bxc4 {[%clk 0:02:46]}  Bg4 {[%clk 0:02:43]} 14. Qd3 {[%clk 0:02:39]}  Rac8 {[%clk 0:02:42]} 15. Rfc1 {[%clk 0:02:31]}  Rfd8 {[%clk 0:02:39]} 16. Ne2 {[%clk 0:02:28]}  b5 {[%clk 0:02:01]} 17. dxc6 {[%clk 0:01:45]}  Bc5 {[%clk 0:02:00]} 18. Qb3 {[%clk 0:01:32]}  Nxe4 {[%clk 0:01:57]} 19. cxb5 {[%clk 0:01:26]}  Nxf2 {[%clk 0:01:52]} 20. Kf1 {[%clk 0:01:11]}  Nd3 {[%clk 0:01:51]} 21. Rd1 {[%clk 0:01:06]}  e4 {[%clk 0:01:36]} 22. Rxd3 {[%clk 0:00:44]}  Rxd3 {[%clk 0:01:31]} 23. Qc4 {[%clk 0:00:44]}  exf3 {[%clk 0:01:29]} 24. Qxd3 {[%clk 0:00:40]}  fxe2+ {[%clk 0:01:28]} 25. Ke1 {[%clk 0:00:16]}  Rd8 {[%clk 0:01:12]} 0-1


[Site "https://www.chess.com"]

[Event "Titled Tuesday Blitz May 30 Early 2023"]
[White "Lenaerts, Lennert"]
[Black "FunnyDuck66"]
[WhiteFideId "211435"]
[WhiteElo "2334"]
[BlackElo "2289"]
[Result "1-0"]
[Round "04"]
[TimeControl "180+2"]
[Date "2023.05.30"]
[WhiteClock "0:02:07"]
[BlackClock "0:00:01"]

1. d4 {[%clk 0:03:00]}  Nf6 {[%clk 0:02:57]} 2. c4 {[%clk 0:03:00]}  e6 {[%clk 0:02:57]} 3. Nc3 {[%clk 0:03:01]}  Bb4 {[%clk 0:02:56]} 4. g3 {[%clk 0:03:01]}  O-O {[%clk 0:02:54]} 5. Bg2 {[%clk 0:03:02]}  d6 {[%clk 0:02:54]} 6. Nf3 {[%clk 0:03:02]}  Qe7 {[%clk 0:02:54]} 7. O-O {[%clk 0:03:02]}  Bxc3 {[%clk 0:02:54]} 8. bxc3 {[%clk 0:03:03]}  e5 {[%clk 0:02:52]} 9. c5 {[%clk 0:03:02]}  e4 {[%clk 0:02:50]} 10. cxd6 {[%clk 0:03:02]}  cxd6 {[%clk 0:02:48]} 11. Nd2 {[%clk 0:03:02]}  d5 {[%clk 0:02:46]} 12. f3 {[%clk 0:02:58]}  exf3 {[%clk 0:02:36]} 13. Nxf3 {[%clk 0:02:59]}  Nc6 {[%clk 0:02:33]} 14. Qb3 {[%clk 0:02:58]}  Na5 {[%clk 0:02:28]} 15. Qb5 {[%clk 0:02:49]}  Nc4 {[%clk 0:02:25]} 16. Bg5 {[%clk 0:02:49]}  a6 {[%clk 0:02:08]} 17. Bxf6 {[%clk 0:02:45]}  Qxf6 {[%clk 0:02:01]} 18. Qxd5 {[%clk 0:02:45]}  Ne3 {[%clk 0:01:57]} 19. Qb3 {[%clk 0:02:44]}  Nxf1 {[%clk 0:01:57]} 20. Rxf1 {[%clk 0:02:45]}  Qe6 {[%clk 0:01:51]} 21. Ne5 {[%clk 0:02:37]}  Qxb3 {[%clk 0:01:40]} 22. axb3 {[%clk 0:02:38]}  Rb8 {[%clk 0:01:39]} 23. e4 {[%clk 0:02:36]}  f6 {[%clk 0:01:38]} 24. Nc4 {[%clk 0:02:35]}  b5 {[%clk 0:01:37]} 25. Nd6 {[%clk 0:02:34]}  Be6 {[%clk 0:01:37]} 26. b4 {[%clk 0:02:28]}  Rfd8 {[%clk 0:01:36]} 27. e5 {[%clk 0:02:28]}  fxe5 {[%clk 0:01:29]} 28. dxe5 {[%clk 0:02:29]}  Rb6 {[%clk 0:01:15]} 29. Ra1 {[%clk 0:02:26]}  Rd7 {[%clk 0:00:51]} 30. Kf2 {[%clk 0:02:26]}  Rc7 {[%clk 0:00:50]} 31. Ra3 {[%clk 0:02:26]}  Kf8 {[%clk 0:00:48]} 32. Ke3 {[%clk 0:02:27]}  Ke7 {[%clk 0:00:49]} 33. Kd4 {[%clk 0:02:26]}  Ra7 {[%clk 0:00:17]} 34. Ra1 {[%clk 0:02:19]}  Rxd6+ {[%clk 0:00:16]} 35. exd6+ {[%clk 0:02:19]}  Kxd6 {[%clk 0:00:17]} 36. h4 {[%clk 0:02:11]}  h6 {[%clk 0:00:15]} 37. Be4 {[%clk 0:02:11]}  Bc4 {[%clk 0:00:10]} 38. g4 {[%clk 0:02:05]}  g5 {[%clk 0:00:08]} 39. hxg5 {[%clk 0:02:06]}  hxg5 {[%clk 0:00:09]} 40. Rh1 {[%clk 0:02:06]}  Be6 {[%clk 0:00:09]} 41. Rh6 {[%clk 0:02:06]}  Re7 {[%clk 0:00:07]} 42. Bf5 {[%clk 0:02:06]}  Kd7 {[%clk 0:00:08]} 43. Rxe6 {[%clk 0:02:06]}  Rxe6 {[%clk 0:00:01]} 44. Kd5 {[%clk 0:02:07]} 1-0


[Site "https://www.chess.com"]

[Event "Titled Tuesday Blitz May 30 Early 2023"]
[White "Atoufi, Pedram"]
[Black "Nasir, Zehn"]
[WhiteFideId "12501654"]
[BlackFideId "2613239"]
[WhiteElo "2228"]
[BlackElo "1993"]
[Result "1/2-1/2"]
[Round "04"]
[TimeControl "180+2"]
[Date "2023.05.30"]
[WhiteClock "0:00:03"]
[BlackClock "0:00:08"]

1. e4 {[%clk 0:02:57]}  c6 {[%clk 0:02:59]} 2. Nf3 {[%clk 0:02:56]}  d5 {[%clk 0:02:55]} 3. e5 {[%clk 0:02:54]}  Bg4 {[%clk 0:02:55]} 4. d4 {[%clk 0:02:54]}  e6 {[%clk 0:02:55]} 5. Bd3 {[%clk 0:02:53]}  c5 {[%clk 0:02:53]} 6. Nbd2 {[%clk 0:02:52]}  Nc6 {[%clk 0:02:51]} 7. h3 {[%clk 0:02:45]}  Bxf3 {[%clk 0:02:45]} 8. Nxf3 {[%clk 0:02:37]}  cxd4 {[%clk 0:02:45]} 9. c3 {[%clk 0:02:37]}  dxc3 {[%clk 0:02:44]} 10. bxc3 {[%clk 0:02:37]}  Bc5 {[%clk 0:02:40]} 11. Rb1 {[%clk 0:02:33]}  Qc7 {[%clk 0:02:35]} 12. Bf4 {[%clk 0:02:31]}  Nge7 {[%clk 0:02:35]} 13. Nd4 {[%clk 0:02:18]}  a6 {[%clk 0:02:19]} 14. Qc2 {[%clk 0:02:02]}  Ng6 {[%clk 0:02:07]} 15. Bg3 {[%clk 0:01:56]}  Ngxe5 {[%clk 0:02:03]} 16. O-O {[%clk 0:01:49]}  Bd6 {[%clk 0:01:58]} 17. Nxc6 {[%clk 0:01:40]}  bxc6 {[%clk 0:01:46]} 18. Bxe5 {[%clk 0:01:28]}  Bxe5 {[%clk 0:01:46]} 19. Rfe1 {[%clk 0:01:28]}  g6 {[%clk 0:01:43]} 20. c4 {[%clk 0:01:28]}  O-O {[%clk 0:01:38]} 21. cxd5 {[%clk 0:01:10]}  cxd5 {[%clk 0:01:33]} 22. Qxc7 {[%clk 0:01:09]}  Bxc7 {[%clk 0:01:33]} 23. Rec1 {[%clk 0:01:08]}  Bf4 {[%clk 0:01:30]} 24. Rc5 {[%clk 0:01:00]}  a5 {[%clk 0:01:19]} 25. Kf1 {[%clk 0:00:47]}  Bd6 {[%clk 0:01:09]} 26. Rc6 {[%clk 0:00:45]}  Bb4 {[%clk 0:01:07]} 27. g3 {[%clk 0:00:45]}  Rfc8 {[%clk 0:01:06]} 28. Rbc1 {[%clk 0:00:45]}  Rxc6 {[%clk 0:01:05]} 29. Rxc6 {[%clk 0:00:45]}  Ra7 {[%clk 0:01:04]} 30. Ke2 {[%clk 0:00:43]}  e5 {[%clk 0:01:01]} 31. Bc2 {[%clk 0:00:42]}  Kf8 {[%clk 0:00:57]} 32. Bb3 {[%clk 0:00:41]}  Rd7 {[%clk 0:00:54]} 33. Rb6 {[%clk 0:00:39]}  Ke7 {[%clk 0:00:50]} 34. Rb5 {[%clk 0:00:37]}  Ke6 {[%clk 0:00:46]} 35. f3 {[%clk 0:00:37]}  f5 {[%clk 0:00:45]} 36. Rb6+ {[%clk 0:00:36]}  Rd6 {[%clk 0:00:45]} 37. Rb7 {[%clk 0:00:35]}  h5 {[%clk 0:00:43]} 38. Rb5 {[%clk 0:00:35]}  e4 {[%clk 0:00:42]} 39. f4 {[%clk 0:00:35]}  Bc3 {[%clk 0:00:35]} 40. a3 {[%clk 0:00:33]}  a4 {[%clk 0:00:28]} 41. Bxa4 {[%clk 0:00:32]}  d4 {[%clk 0:00:29]} 42. Bb3+ {[%clk 0:00:31]}  Kf6 {[%clk 0:00:29]} 43. Rb7 {[%clk 0:00:29]}  d3+ {[%clk 0:00:27]} 44. Ke3 {[%clk 0:00:28]}  Bd4+ {[%clk 0:00:25]} 45. Kd2 {[%clk 0:00:27]}  g5 {[%clk 0:00:24]} 46. h4 {[%clk 0:00:25]}  gxf4 {[%clk 0:00:23]} 47. gxf4 {[%clk 0:00:25]}  Bf2 {[%clk 0:00:23]} 48. Rf7+ {[%clk 0:00:24]}  Kg6 {[%clk 0:00:23]} 49. Re7 {[%clk 0:00:22]}  e3+ {[%clk 0:00:23]} 50. Rxe3 {[%clk 0:00:22]}  Bxe3+ {[%clk 0:00:23]} 51. Kxe3 {[%clk 0:00:22]}  d2 {[%clk 0:00:23]} 52. Bd1 {[%clk 0:00:21]}  Ra6 {[%clk 0:00:19]} 53. a4 {[%clk 0:00:21]}  Rd6 {[%clk 0:00:17]} 54. Ke2 {[%clk 0:00:20]}  Rd4 {[%clk 0:00:17]} 55. a5 {[%clk 0:00:20]}  Rxf4 {[%clk 0:00:16]} 56. a6 {[%clk 0:00:20]}  Re4+ {[%clk 0:00:14]} 57. Kxd2 {[%clk 0:00:20]}  Re6 {[%clk 0:00:14]} 58. Be2 {[%clk 0:00:19]}  Re7 {[%clk 0:00:13]} 59. Bd3 {[%clk 0:00:19]}  Kf6 {[%clk 0:00:13]} 60. Be2 {[%clk 0:00:19]}  Ra7 {[%clk 0:00:11]} 61. Ke3 {[%clk 0:00:19]}  Ke5 {[%clk 0:00:12]} 62. Bb5 {[%clk 0:00:18]}  f4+ {[%clk 0:00:11]} 63. Kf3 {[%clk 0:00:19]}  Rc7 {[%clk 0:00:11]} 64. Be8 {[%clk 0:00:18]}  Rc3+ {[%clk 0:00:11]} 65. Ke2 {[%clk 0:00:18]}  Ra3 {[%clk 0:00:12]} 66. Bxh5 {[%clk 0:00:18]}  Rxa6 {[%clk 0:00:11]} 67. Bf7 {[%clk 0:00:18]}  Rf6 {[%clk 0:00:11]} 68. Be8 {[%clk 0:00:18]}  Ra6 {[%clk 0:00:11]} 69. Kf3 {[%clk 0:00:17]}  Ra3+ {[%clk 0:00:10]} 70. Ke2 {[%clk 0:00:17]}  Ke4 {[%clk 0:00:10]} 71. Bc6+ {[%clk 0:00:16]}  Kf5 {[%clk 0:00:11]} 72. Bd7+ {[%clk 0:00:16]}  Ke5 {[%clk 0:00:11]} 73. Kf2 {[%clk 0:00:15]}  Rg3 {[%clk 0:00:11]} 74. h5 {[%clk 0:00:15]}  Kd6 {[%clk 0:00:09]} 75. Bc8 {[%clk 0:00:15]}  Ke5 {[%clk 0:00:09]} 76. Bb7 {[%clk 0:00:14]}  Rg5 {[%clk 0:00:09]} 77. Bf3 {[%clk 0:00:13]}  Rg7 {[%clk 0:00:08]} 78. Be2 {[%clk 0:00:13]}  Kf5 {[%clk 0:00:07]} 79. h6 {[%clk 0:00:12]}  Rg8 {[%clk 0:00:07]} 80. h7 {[%clk 0:00:12]}  Rh8 {[%clk 0:00:06]} 81. Bd3+ {[%clk 0:00:10]}  Kg4 {[%clk 0:00:06]} 82. Be2+ {[%clk 0:00:09]}  Kg5 {[%clk 0:00:06]} 83. Bd3 {[%clk 0:00:09]}  Rd8 {[%clk 0:00:07]} 84. Be2 {[%clk 0:00:09]}  Kh6 {[%clk 0:00:06]} 85. Kf3 {[%clk 0:00:09]}  Rf8 {[%clk 0:00:06]} 86. h8=Q+ {[%clk 0:00:07]}  Rxh8 {[%clk 0:00:05]} 87. Kxf4 {[%clk 0:00:07]}  Rf8+ {[%clk 0:00:06]} 88. Ke4 {[%clk 0:00:07]}  Kg5 {[%clk 0:00:06]} 89. Bd3 {[%clk 0:00:07]}  Re8+ {[%clk 0:00:06]} 90. Kd4 {[%clk 0:00:06]}  Kf4 {[%clk 0:00:06]} 91. Bb1 {[%clk 0:00:06]}  Rb8 {[%clk 0:00:06]} 92. Ba2 {[%clk 0:00:06]}  Ra8 {[%clk 0:00:05]} 93. Bd5 {[%clk 0:00:06]}  Rd8 {[%clk 0:00:05]} 94. Kc5 {[%clk 0:00:06]}  Ke5 {[%clk 0:00:05]} 95. Bf3 {[%clk 0:00:06]}  Rc8+ {[%clk 0:00:05]} 96. Bc6 {[%clk 0:00:04]}  Rc7 {[%clk 0:00:04]} 97. Kb6 {[%clk 0:00:04]}  Kd6 {[%clk 0:00:04]} 98. Ba4 {[%clk 0:00:04]}  Rc1 {[%clk 0:00:04]} 99. Kb5 {[%clk 0:00:05]}  Ra1 {[%clk 0:00:03]} 100. Bb3 {[%clk 0:00:04]}  Rb1 {[%clk 0:00:04]} 101. Kc4 {[%clk 0:00:04]}  Rh1 {[%clk 0:00:04]} 102. Ba2 {[%clk 0:00:05]}  Rh3 {[%clk 0:00:04]} 103. Kd4 {[%clk 0:00:04]}  Rh4+ {[%clk 0:00:04]} 104. Kd3 {[%clk 0:00:04]}  Kc5 {[%clk 0:00:04]} 105. Bb1 {[%clk 0:00:04]}  Rd4+ {[%clk 0:00:04]} 106. Ke3 {[%clk 0:00:05]}  Rb4 {[%clk 0:00:04]} 107. Bg6 {[%clk 0:00:05]}  Kd5 {[%clk 0:00:04]} 108. Bh5 {[%clk 0:00:04]}  Ke5 {[%clk 0:00:04]} 109. Bf7 {[%clk 0:00:04]}  Ra4 {[%clk 0:00:05]} 110. Kd3 {[%clk 0:00:04]}  Ra7 {[%clk 0:00:05]} 111. Be8 {[%clk 0:00:04]}  Ra8 {[%clk 0:00:05]} 112. Bb5 {[%clk 0:00:04]}  Rb8 {[%clk 0:00:05]} 113. Ba6 {[%clk 0:00:04]}  Rb6 {[%clk 0:00:05]} 114. Bc4 {[%clk 0:00:04]}  Rb4 {[%clk 0:00:06]} 115. Bf7 {[%clk 0:00:04]}  Ra4 {[%clk 0:00:05]} 116. Bg6 {[%clk 0:00:04]}  Ra3+ {[%clk 0:00:05]} 117. Kc4 {[%clk 0:00:04]}  Rg3 {[%clk 0:00:06]} 118. Bb1 {[%clk 0:00:04]}  Rg4+ {[%clk 0:00:06]} 119. Kd3 {[%clk 0:00:04]}  Rg1 {[%clk 0:00:07]} 120. Ba2 {[%clk 0:00:03]}  Rg3+ {[%clk 0:00:07]} 121. Kc4 {[%clk 0:00:03]}  Rg2 {[%clk 0:00:07]} 122. Bb1 {[%clk 0:00:03]}  Rb2 {[%clk 0:00:07]} 123. Bg6 {[%clk 0:00:03]}  Rb8 {[%clk 0:00:07]} 124. Bc2 {[%clk 0:00:02]}  Rc8+ {[%clk 0:00:07]} 125. Kb3 {[%clk 0:00:03]}  Kd4 {[%clk 0:00:08]} 126. Bf5 {[%clk 0:00:02]}  Rb8+ {[%clk 0:00:08]} 127. Kc2 {[%clk 0:00:03]}  Rb7 {[%clk 0:00:07]} 128. Bd3 {[%clk 0:00:03]}  Rb6 {[%clk 0:00:07]} 129. Bf5 {[%clk 0:00:03]}  Ra6 {[%clk 0:00:08]} 130. Bd7 {[%clk 0:00:03]}  Ra2+ {[%clk 0:00:07]} 131. Kb3 {[%clk 0:00:03]}  Ra8 {[%clk 0:00:07]} 132. Ba4 {[%clk 0:00:02]}  Kc5 {[%clk 0:00:07]} 133. Bd7 {[%clk 0:00:02]}  Rh8 {[%clk 0:00:08]} 134. Be6 {[%clk 0:00:02]}  Rh6 {[%clk 0:00:08]} 135. Bf5 {[%clk 0:00:03]}  Rf6 {[%clk 0:00:08]} 136. Bg4 {[%clk 0:00:02]}  Rf4 {[%clk 0:00:08]} 137. Bf5 {[%clk 0:00:03]} 1/2-1/2


[Site "https://www.chess.com"]

[Event "Titled Tuesday Blitz May 30 Early 2023"]
[White "Zhigalko, Sergei"]
[Black "rionelG"]
[WhiteFideId "13502956"]
[WhiteElo "2626"]
[BlackElo "2127"]
[Result "1-0"]
[Round "04"]
[TimeControl "180+2"]
[Date "2023.05.30"]
[WhiteClock "0:02:53"]
[BlackClock "0:01:17"]

1. e4 {[%clk 0:03:00]}  c5 {[%clk 0:02:59]} 2. Nf3 {[%clk 0:03:01]}  d6 {[%clk 0:02:58]} 3. d4 {[%clk 0:02:58]}  cxd4 {[%clk 0:02:59]} 4. Qxd4 {[%clk 0:02:59]}  Nc6 {[%clk 0:02:59]} 5. Bb5 {[%clk 0:03:00]}  Bd7 {[%clk 0:02:59]} 6. Bxc6 {[%clk 0:03:00]}  Bxc6 {[%clk 0:02:59]} 7. Nc3 {[%clk 0:03:01]}  Nf6 {[%clk 0:02:58]} 8. Bg5 {[%clk 0:03:01]}  e6 {[%clk 0:02:58]} 9. O-O-O {[%clk 0:03:01]}  Be7 {[%clk 0:02:58]} 10. Rhe1 {[%clk 0:03:00]}  O-O {[%clk 0:02:56]} 11. Kb1 {[%clk 0:03:01]}  Qa5 {[%clk 0:02:44]} 12. Qd2 {[%clk 0:03:01]}  Qc7 {[%clk 0:02:29]} 13. Nd4 {[%clk 0:03:01]}  Rfc8 {[%clk 0:02:25]} 14. f3 {[%clk 0:03:01]}  a6 {[%clk 0:02:08]} 15. g4 {[%clk 0:03:00]}  b5 {[%clk 0:02:08]} 16. Nce2 {[%clk 0:03:00]}  a5 {[%clk 0:02:04]} 17. Ng3 {[%clk 0:03:00]}  b4 {[%clk 0:02:01]} 18. Nh5 {[%clk 0:02:54]}  Nxh5 {[%clk 0:01:20]} 19. gxh5 {[%clk 0:02:54]}  Bxg5 {[%clk 0:01:20]} 20. Qxg5 {[%clk 0:02:54]}  Qd8 {[%clk 0:01:21]} 21. Qxd8+ {[%clk 0:02:53]}  Rxd8 {[%clk 0:01:17]} 22. Nxc6 {[%clk 0:02:53]} 1-0


[Site "https://www.chess.com"]